[Event "Titled Tuesday Blitz August 15 Early 2023"]
[White "Djordjevic, Vuk"]
[Black "Mindhunter08"]
[WhiteFideId "902098"]
[WhiteElo "2697"]
[BlackElo "2466"]
[Result "1/2-1/2"]
[Round "3"]
[TimeControl "180+1"]
[Date "2023.08.15"]
[WhiteClock "0:00:06"]
[BlackClock "0:00:07"]
[Board "95"]

1. d4 {[%clk 0:03:00]}  d5 {[%clk 0:03:00]} 2. Nf3 {[%clk 0:03:00]}  Nf6 {[%clk 0:03:00]} 3. c4 {[%clk 0:03:00]}  c6 {[%clk 0:03:00]} 4. Nc3 {[%clk 0:03:00]}  e6 {[%clk 0:03:01]} 5. Bg5 {[%clk 0:03:00]}  dxc4 {[%clk 0:03:01]} 6. e4 {[%clk 0:02:59]}  b5 {[%clk 0:03:02]} 7. e5 {[%clk 0:02:59]}  h6 {[%clk 0:03:02]} 8. Bh4 {[%clk 0:03:00]}  g5 {[%clk 0:03:03]} 9. Nxg5 {[%clk 0:03:00]}  hxg5 {[%clk 0:03:04]} 10. Bxg5 {[%clk 0:03:01]}  Nbd7 {[%clk 0:03:04]} 11. g3 {[%clk 0:03:00]}  Bb7 {[%clk 0:03:04]} 12. Bg2 {[%clk 0:02:59]}  Qb6 {[%clk 0:03:04]} 13. exf6 {[%clk 0:02:59]}  O-O-O {[%clk 0:03:01]} 14. O-O {[%clk 0:02:56]}  c5 {[%clk 0:02:55]} 15. d5 {[%clk 0:02:55]}  b4 {[%clk 0:02:55]} 16. Na4 {[%clk 0:02:55]}  Qb5 {[%clk 0:02:55]} 17. a3 {[%clk 0:02:53]}  Nb8 {[%clk 0:02:48]} 18. axb4 {[%clk 0:02:45]}  cxb4 {[%clk 0:02:44]} 19. Qg4 {[%clk 0:02:42]}  Bxd5 {[%clk 0:02:42]} 20. Rfc1 {[%clk 0:02:40]}  Nc6 {[%clk 0:02:33]} 21. Bxd5 {[%clk 0:02:38]}  Rxd5 {[%clk 0:02:25]} 22. Qxc4 {[%clk 0:02:37]}  Rd1+ {[%clk 0:02:19]} 23. Rxd1 {[%clk 0:02:04]}  Qxc4 {[%clk 0:02:19]} 24. Be3 {[%clk 0:02:04]}  Qe4 {[%clk 0:01:31]} 25. Rac1 {[%clk 0:01:52]}  Rh5 {[%clk 0:01:11]} 26. Rd4 {[%clk 0:01:25]}  Qf3 {[%clk 0:00:56]} 27. Rf4 {[%clk 0:00:28]}  Qd5 {[%clk 0:00:54]} 28. Rfc4 {[%clk 0:00:28]}  Kb7 {[%clk 0:00:46]} 29. Bxa7 {[%clk 0:00:12]}  Nxa7 {[%clk 0:00:19]} 30. Rc7+ {[%clk 0:00:12]}  Ka6 {[%clk 0:00:17]} 31. Ra1 {[%clk 0:00:12]}  Qa5 {[%clk 0:00:14]} 32. Rxf7 {[%clk 0:00:09]}  Bd6 {[%clk 0:00:11]} 33. Rd7 {[%clk 0:00:03]}  Nc8 {[%clk 0:00:06]} 34. Nc5+ {[%clk 0:00:02]}  Rxc5 {[%clk 0:00:05]} 35. Rxa5+ {[%clk 0:00:02]}  Kxa5 {[%clk 0:00:04]} 36. f7 {[%clk 0:00:02]}  Rf5 {[%clk 0:00:02]} 37. Rd8 {[%clk 0:00:03]}  Rxf7 {[%clk 0:00:01]} 38. Rxc8 {[%clk 0:00:03]}  Ka4 {[%clk 0:00:01]} 39. Rd8 {[%clk 0:00:02]}  Be7 {[%clk 0:00:02]} 40. Rd7 {[%clk 0:00:01]}  Kb3 {[%clk 0:00:02]} 41. h4 {[%clk 0:00:02]}  Kxb2 {[%clk 0:00:03]} 42. h5 {[%clk 0:00:02]}  b3 {[%clk 0:00:03]} 43. g4 {[%clk 0:00:03]}  Ka1 {[%clk 0:00:02]} 44. Ra7+ {[%clk 0:00:03]}  Kb1 {[%clk 0:00:02]} 45. g5 {[%clk 0:00:04]}  b2 {[%clk 0:00:02]} 46. g6 {[%clk 0:00:04]}  Rf5 {[%clk 0:00:02]} 47. Rxe7 {[%clk 0:00:02]}  Rxh5 {[%clk 0:00:02]} 48. g7 {[%clk 0:00:02]}  Rg5+ {[%clk 0:00:03]} 49. Kf1 {[%clk 0:00:03]}  Kc1 {[%clk 0:00:03]} 50. Rc7+ {[%clk 0:00:03]}  Kd2 {[%clk 0:00:04]} 51. Rd7+ {[%clk 0:00:04]}  Kc3 {[%clk 0:00:04]} 52. Rc7+ {[%clk 0:00:04]}  Kd4 {[%clk 0:00:04]} 53. Rd7+ {[%clk 0:00:05]}  Rd5 {[%clk 0:00:03]} 54. Rxd5+ {[%clk 0:00:04]}  exd5 {[%clk 0:00:03]} 55. g8=Q {[%clk 0:00:04]}  b1=Q+ {[%clk 0:00:04]} 56. Kg2 {[%clk 0:00:03]}  Qe4+ {[%clk 0:00:05]} 57. Kg3 {[%clk 0:00:04]}  Qe5+ {[%clk 0:00:05]} 58. f4 {[%clk 0:00:04]}  Qe3+ {[%clk 0:00:05]} 59. Kh4 {[%clk 0:00:04]}  Qxf4+ {[%clk 0:00:05]} 60. Kh5 {[%clk 0:00:04]}  Ke4 {[%clk 0:00:05]} 61. Qa8 {[%clk 0:00:02]}  Qe5+ {[%clk 0:00:05]} 62. Kg4 {[%clk 0:00:03]}  Qf5+ {[%clk 0:00:05]} 63. Kg3 {[%clk 0:00:03]}  Qf3+ {[%clk 0:00:05]} 64. Kh2 {[%clk 0:00:03]}  Qf2+ {[%clk 0:00:04]} 65. Kh3 {[%clk 0:00:03]}  Qe3+ {[%clk 0:00:04]} 66. Kg2 {[%clk 0:00:04]}  Qf4 {[%clk 0:00:03]} 67. Qb7 {[%clk 0:00:03]}  Ke5 {[%clk 0:00:03]} 68. Qc7+ {[%clk 0:00:03]}  Kf5 {[%clk 0:00:04]} 69. Qf7+ {[%clk 0:00:03]}  Ke4 {[%clk 0:00:04]} 70. Qxf4+ {[%clk 0:00:02]}  Kxf4 {[%clk 0:00:05]} 71. Kf2 {[%clk 0:00:03]}  Ke4 {[%clk 0:00:06]} 72. Ke2 {[%clk 0:00:04]}  Kd4 {[%clk 0:00:05]} 73. Kd2 {[%clk 0:00:04]}  Ke4 {[%clk 0:00:05]} 74. Ke2 {[%clk 0:00:05]}  Kd4 {[%clk 0:00:06]} 75. Kd2 {[%clk 0:00:05]}  Kc4 {[%clk 0:00:06]} 76. Kc2 {[%clk 0:00:05]}  Kd4 {[%clk 0:00:07]} 77. Kd2 {[%clk 0:00:06]} 1/2-1/2


[Site "https://www.chess.com"]

[Event "Titled Tuesday Blitz August 15 Early 2023"]
[White "Karavade, Eesha"]
[Black "Shyam, Sundar M."]
[WhiteFideId "5012600"]
[BlackFideId "5019141"]
[WhiteElo "2463"]
[BlackElo "2696"]
[Result "1/2-1/2"]
[Round "3"]
[TimeControl "180+1"]
[Date "2023.08.15"]
[WhiteClock "0:00:43"]
[BlackClock "0:00:46"]
[Board "96"]

1. d4 {[%clk 0:03:00]}  Nf6 {[%clk 0:02:47]} 2. c4 {[%clk 0:03:00]}  b6 {[%clk 0:02:46]} 3. Nf3 {[%clk 0:02:59]}  Bb7 {[%clk 0:02:47]} 4. Nc3 {[%clk 0:03:00]}  g6 {[%clk 0:02:45]} 5. Qc2 {[%clk 0:02:46]}  Bxf3 {[%clk 0:02:43]} 6. exf3 {[%clk 0:02:45]}  Bg7 {[%clk 0:02:43]} 7. Be3 {[%clk 0:02:32]}  O-O {[%clk 0:02:43]} 8. Be2 {[%clk 0:02:32]}  d6 {[%clk 0:02:23]} 9. O-O-O {[%clk 0:02:30]}  Nbd7 {[%clk 0:02:17]} 10. h4 {[%clk 0:02:29]}  c5 {[%clk 0:02:17]} 11. d5 {[%clk 0:02:21]}  a6 {[%clk 0:02:17]} 12. g4 {[%clk 0:02:15]}  b5 {[%clk 0:02:17]} 13. h5 {[%clk 0:02:15]}  Qa5 {[%clk 0:02:02]} 14. cxb5 {[%clk 0:02:04]}  axb5 {[%clk 0:01:59]} 15. Bxb5 {[%clk 0:02:04]}  Nb6 {[%clk 0:01:57]} 16. hxg6 {[%clk 0:01:57]}  fxg6 {[%clk 0:01:55]} 17. Bh6 {[%clk 0:01:55]}  Bxh6+ {[%clk 0:01:42]} 18. Rxh6 {[%clk 0:01:54]}  Rf7 {[%clk 0:01:43]} 19. g5 {[%clk 0:01:39]}  Nfd7 {[%clk 0:01:29]} 20. Bxd7 {[%clk 0:01:33]}  Nxd7 {[%clk 0:01:28]} 21. Rdh1 {[%clk 0:01:33]}  Nf8 {[%clk 0:01:01]} 22. Qe4 {[%clk 0:01:32]}  Qb4 {[%clk 0:01:00]} 23. R1h2 {[%clk 0:01:22]}  Qd4 {[%clk 0:00:54]} 24. Kc2 {[%clk 0:01:16]}  Nd7 {[%clk 0:00:48]} 25. Qe6 {[%clk 0:01:01]}  Nf8 {[%clk 0:00:47]} 26. Qe4 {[%clk 0:01:00]}  Nd7 {[%clk 0:00:46]} 27. Qe6 {[%clk 0:00:43]}  Nf8 {[%clk 0:00:46]} 28. Qe4 {[%clk 0:00:43]} 1/2-1/2


[Site "https://www.chess.com"]

[Event "Titled Tuesday Blitz August 15 Early 2023"]
[White "GaiozNigalidze"]
[Black "RrainlessBobot"]
[WhiteElo "2695"]
[BlackElo "2463"]
[Result "1-0"]
[Round "3"]
[TimeControl "180+1"]
[Date "2023.08.15"]
[WhiteClock "0:01:20"]
[BlackClock "0:00:22"]
[Board "97"]

1. d4 {[%clk 0:03:00]}  Nf6 {[%clk 0:03:00]} 2. c4 {[%clk 0:03:01]}  g6 {[%clk 0:03:00]} 3. Nc3 {[%clk 0:03:01]}  Bg7 {[%clk 0:03:01]} 4. e4 {[%clk 0:03:01]}  d6 {[%clk 0:03:01]} 5. Nf3 {[%clk 0:03:02]}  O-O {[%clk 0:03:01]} 6. h3 {[%clk 0:03:03]}  e5 {[%clk 0:02:59]} 7. d5 {[%clk 0:03:03]}  a5 {[%clk 0:02:59]} 8. Bd3 {[%clk 0:03:03]}  Na6 {[%clk 0:02:59]} 9. Bg5 {[%clk 0:03:03]}  Qe8 {[%clk 0:02:54]} 10. a3 {[%clk 0:03:00]}  Nc5 {[%clk 0:02:49]} 11. Bc2 {[%clk 0:02:58]}  Bd7 {[%clk 0:02:33]} 12. b4 {[%clk 0:02:50]}  axb4 {[%clk 0:02:33]} 13. axb4 {[%clk 0:02:51]}  Rxa1 {[%clk 0:02:34]} 14. Qxa1 {[%clk 0:02:51]}  Na6 {[%clk 0:02:35]} 15. Qa5 {[%clk 0:02:41]}  Nh5 {[%clk 0:02:10]} 16. b5 {[%clk 0:02:29]}  Nc5 {[%clk 0:02:05]} 17. Qxc7 {[%clk 0:02:29]}  Nf4 {[%clk 0:01:55]} 18. Qxd6 {[%clk 0:02:28]}  Ncd3+ {[%clk 0:01:25]} 19. Bxd3 {[%clk 0:02:27]}  Nxd3+ {[%clk 0:01:26]} 20. Kd2 {[%clk 0:02:27]}  Nf4 {[%clk 0:01:19]} 21. Bf6 {[%clk 0:01:56]}  Bh6 {[%clk 0:00:43]} 22. Kc2 {[%clk 0:01:49]}  Nh5 {[%clk 0:00:37]} 23. Bxe5 {[%clk 0:01:43]}  Qc8 {[%clk 0:00:32]} 24. c5 {[%clk 0:01:41]}  Rd8 {[%clk 0:00:27]} 25. Qc7 {[%clk 0:01:37]}  Qa8 {[%clk 0:00:27]} 26. c6 {[%clk 0:01:33]}  bxc6 {[%clk 0:00:27]} 27. bxc6 {[%clk 0:01:32]}  Be8 {[%clk 0:00:28]} 28. Rb1 {[%clk 0:01:27]}  Rc8 {[%clk 0:00:22]} 29. Qb7 {[%clk 0:01:20]} 1-0


[Site "https://www.chess.com"]

[Event "Titled Tuesday Blitz August 15 Early 2023"]
[White "Veiga, Jose Francisco R P Neves"]
[Black "Dong Khanh Linh"]
[WhiteFideId "1930087"]
[BlackFideId "12403040"]
[WhiteElo "2690"]
[BlackElo "2459"]
[Result "1/2-1/2"]
[Round "3"]
[TimeControl "180+1"]
[Date "2023.08.15"]
[WhiteClock "0:00:09"]
[BlackClock "0:00:03"]
[Board "99"]

1. c4 {[%clk 0:03:00]}  f5 {[%clk 0:02:58]} 2. Nc3 {[%clk 0:03:00]}  Nf6 {[%clk 0:02:57]} 3. g3 {[%clk 0:02:59]}  e5 {[%clk 0:02:57]} 4. Bg2 {[%clk 0:03:00]}  Bb4 {[%clk 0:02:57]} 5. Nd5 {[%clk 0:02:59]}  Nxd5 {[%clk 0:02:57]} 6. cxd5 {[%clk 0:03:00]}  O-O {[%clk 0:02:56]} 7. e3 {[%clk 0:03:00]}  d6 {[%clk 0:02:48]} 8. Ne2 {[%clk 0:02:59]}  a5 {[%clk 0:02:45]} 9. a3 {[%clk 0:02:59]}  Bc5 {[%clk 0:02:45]} 10. d4 {[%clk 0:02:58]}  Bb6 {[%clk 0:02:34]} 11. dxe5 {[%clk 0:02:55]}  dxe5 {[%clk 0:02:34]} 12. O-O {[%clk 0:02:54]}  Nd7 {[%clk 0:02:29]} 13. Bd2 {[%clk 0:02:53]}  Nf6 {[%clk 0:02:25]} 14. Bc3 {[%clk 0:02:52]}  Qe7 {[%clk 0:02:16]} 15. b4 {[%clk 0:02:51]}  axb4 {[%clk 0:02:12]} 16. axb4 {[%clk 0:02:51]}  Bd7 {[%clk 0:02:09]} 17. Qb3 {[%clk 0:02:41]}  Qd6 {[%clk 0:01:47]} 18. Qb2 {[%clk 0:02:38]}  Rae8 {[%clk 0:01:41]} 19. Rfd1 {[%clk 0:02:28]}  Ne4 {[%clk 0:01:40]} 20. Be1 {[%clk 0:02:26]}  h6 {[%clk 0:01:30]} 21. Nc3 {[%clk 0:02:25]}  Nxc3 {[%clk 0:01:29]} 22. Bxc3 {[%clk 0:02:26]}  Rf7 {[%clk 0:01:23]} 23. Re1 {[%clk 0:02:00]}  f4 {[%clk 0:01:11]} 24. exf4 {[%clk 0:01:59]}  exf4 {[%clk 0:01:12]} 25. Rxe8+ {[%clk 0:01:59]}  Bxe8 {[%clk 0:01:13]} 26. Re1 {[%clk 0:01:56]}  Bd7 {[%clk 0:01:05]} 27. Be5 {[%clk 0:01:47]}  Qg6 {[%clk 0:00:45]} 28. Be4 {[%clk 0:01:39]}  Bf5 {[%clk 0:00:32]} 29. Bxf5 {[%clk 0:01:30]}  Rxf5 {[%clk 0:00:33]} 30. Bd4 {[%clk 0:01:02]}  Bxd4 {[%clk 0:00:23]} 31. Qxd4 {[%clk 0:01:02]}  f3 {[%clk 0:00:24]} 32. h4 {[%clk 0:00:53]}  Kh7 {[%clk 0:00:20]} 33. Re7 {[%clk 0:00:48]}  Rf6 {[%clk 0:00:18]} 34. Kh2 {[%clk 0:00:42]}  c6 {[%clk 0:00:14]} 35. Rxb7 {[%clk 0:00:34]}  Rd6 {[%clk 0:00:14]} 36. g4 {[%clk 0:00:12]}  Rxd5 {[%clk 0:00:11]} 37. Qf4 {[%clk 0:00:12]}  Rd3 {[%clk 0:00:04]} 38. h5 {[%clk 0:00:09]}  Qe6 {[%clk 0:00:05]} 39. Kg3 {[%clk 0:00:09]}  Rd5 {[%clk 0:00:03]} 40. Qc7 {[%clk 0:00:07]}  Rg5 {[%clk 0:00:03]} 41. Qf4 {[%clk 0:00:07]}  Qd5 {[%clk 0:00:03]} 42. Qxf3 {[%clk 0:00:06]}  Qe5+ {[%clk 0:00:03]} 43. Qf4 {[%clk 0:00:06]}  Qc3+ {[%clk 0:00:03]} 44. f3 {[%clk 0:00:06]}  Qe1+ {[%clk 0:00:04]} 45. Kh3 {[%clk 0:00:07]}  Qh1+ {[%clk 0:00:04]} 46. Kg3 {[%clk 0:00:07]}  Qg1+ {[%clk 0:00:05]} 47. Kh3 {[%clk 0:00:08]}  Qf1+ {[%clk 0:00:06]} 48. Kh2 {[%clk 0:00:07]}  Qf2+ {[%clk 0:00:06]} 49. Kh3 {[%clk 0:00:07]}  Qf1+ {[%clk 0:00:07]} 50. Kh2 {[%clk 0:00:08]}  Qf2+ {[%clk 0:00:07]} 51. Kh3 {[%clk 0:00:09]}  Qf1+ {[%clk 0:00:03]} 1/2-1/2


[Site "https://www.chess.com"]

[Event "Titled Tuesday Blitz August 15 Early 2023"]
[White "Ljukin, Sergei"]
[Black "Matinian, Nikita"]
[WhiteFideId "14102200"]
[BlackFideId "24129100"]
[WhiteElo "2457"]
[BlackElo "2687"]
[Result "0-1"]
[Round "3"]
[TimeControl "180+1"]
[Date "2023.08.15"]
[WhiteClock "0:00:05"]
[BlackClock "0:00:49"]
[Board "100"]

1. e4 {[%clk 0:03:00]}  c5 {[%clk 0:02:59]} 2. Nf3 {[%clk 0:03:00]}  e6 {[%clk 0:02:56]} 3. d4 {[%clk 0:03:00]}  cxd4 {[%clk 0:02:55]} 4. Nxd4 {[%clk 0:03:01]}  Nc6 {[%clk 0:02:56]} 5. Nc3 {[%clk 0:03:01]}  Nf6 {[%clk 0:02:56]} 6. Nxc6 {[%clk 0:03:01]}  bxc6 {[%clk 0:02:57]} 7. e5 {[%clk 0:03:01]}  Nd5 {[%clk 0:02:58]} 8. Ne4 {[%clk 0:03:02]}  Bb7 {[%clk 0:02:56]} 9. Be2 {[%clk 0:03:01]}  c5 {[%clk 0:02:52]} 10. O-O {[%clk 0:02:57]}  Qc7 {[%clk 0:02:48]} 11. Nd6+ {[%clk 0:02:41]}  Bxd6 {[%clk 0:02:48]} 12. exd6 {[%clk 0:02:41]}  Qc6 {[%clk 0:02:49]} 13. Bf3 {[%clk 0:02:16]}  c4 {[%clk 0:02:45]} 14. b3 {[%clk 0:02:08]}  c3 {[%clk 0:02:41]} 15. Qd4 {[%clk 0:01:32]}  f6 {[%clk 0:02:40]} 16. Rd1 {[%clk 0:01:28]}  O-O {[%clk 0:02:30]} 17. Rd3 {[%clk 0:01:21]}  Rac8 {[%clk 0:02:29]} 18. Qxa7 {[%clk 0:01:11]}  Ra8 {[%clk 0:02:04]} 19. Qd4 {[%clk 0:01:09]}  Rfc8 {[%clk 0:02:00]} 20. Bxd5 {[%clk 0:00:57]}  Qxd5 {[%clk 0:02:00]} 21. Qxd5 {[%clk 0:00:57]}  Bxd5 {[%clk 0:02:00]} 22. f3 {[%clk 0:00:56]}  Rc6 {[%clk 0:01:54]} 23. a4 {[%clk 0:00:53]}  Kf7 {[%clk 0:01:41]} 24. Ba3 {[%clk 0:00:53]}  g5 {[%clk 0:01:37]} 25. Re1 {[%clk 0:00:50]}  h5 {[%clk 0:01:37]} 26. Bb4 {[%clk 0:00:45]}  Rb8 {[%clk 0:01:34]} 27. Ba3 {[%clk 0:00:43]}  Rbc8 {[%clk 0:01:32]} 28. Kf2 {[%clk 0:00:43]}  f5 {[%clk 0:01:17]} 29. Bb4 {[%clk 0:00:36]}  Kf6 {[%clk 0:01:16]} 30. Ra1 {[%clk 0:00:23]}  f4 {[%clk 0:01:16]} 31. a5 {[%clk 0:00:22]}  Kf5 {[%clk 0:01:12]} 32. a6 {[%clk 0:00:21]}  Rb6 {[%clk 0:01:09]} 33. Bxc3 {[%clk 0:00:17]}  Rbc6 {[%clk 0:01:09]} 34. Bd2 {[%clk 0:00:15]}  Rxc2 {[%clk 0:01:09]} 35. a7 {[%clk 0:00:13]}  Ba8 {[%clk 0:01:09]} 36. Ra5+ {[%clk 0:00:10]}  e5 {[%clk 0:01:00]} 37. Rdd5 {[%clk 0:00:08]}  Bxd5 {[%clk 0:00:59]} 38. Rxd5 {[%clk 0:00:08]}  Ra2 {[%clk 0:00:57]} 39. Ke1 {[%clk 0:00:07]}  Rxa7 {[%clk 0:00:52]} 40. Ke2 {[%clk 0:00:07]}  Ra2 {[%clk 0:00:51]} 41. Kd3 {[%clk 0:00:08]}  Rcc2 {[%clk 0:00:49]} 42. Bc3 {[%clk 0:00:08]}  Rxc3+ {[%clk 0:00:50]} 43. Kxc3 {[%clk 0:00:08]}  Rxg2 {[%clk 0:00:50]} 44. Rc5 {[%clk 0:00:07]}  Rxh2 {[%clk 0:00:50]} 45. b4 {[%clk 0:00:07]}  g4 {[%clk 0:00:50]} 46. b5 {[%clk 0:00:08]}  gxf3 {[%clk 0:00:49]} 47. b6 {[%clk 0:00:08]}  f2 {[%clk 0:00:49]} 48. b7 {[%clk 0:00:08]}  f1=Q {[%clk 0:00:49]} 49. b8=Q {[%clk 0:00:05]}  Qc1+ {[%clk 0:00:49]} 0-1


[Site "https://www.chess.com"]

[Event "Titled Tuesday Blitz August 15 Early 2023"]
[White "Vaishali, Rameshbabu"]
[Black "Spichkin, Alexander"]
[WhiteFideId "5091756"]
[BlackFideId "4144074"]
[WhiteElo "2670"]
[BlackElo "2456"]
[Result "0-1"]
[Round "3"]
[TimeControl "180+1"]
[Date "2023.08.15"]
[WhiteClock "0:00:00"]
[BlackClock "0:01:10"]
[Board "101"]

1. d4 {[%clk 0:02:58]}  e6 {[%clk 0:02:56]} 2. Nf3 {[%clk 0:02:53]}  f5 {[%clk 0:02:56]} 3. g3 {[%clk 0:02:54]}  Nf6 {[%clk 0:02:57]} 4. Bg2 {[%clk 0:02:55]}  d6 {[%clk 0:02:57]} 5. O-O {[%clk 0:02:55]}  Be7 {[%clk 0:02:58]} 6. b3 {[%clk 0:02:54]}  O-O {[%clk 0:02:58]} 7. Bb2 {[%clk 0:02:55]}  a5 {[%clk 0:02:57]} 8. Nbd2 {[%clk 0:02:51]}  Qe8 {[%clk 0:02:55]} 9. c4 {[%clk 0:02:45]}  a4 {[%clk 0:02:56]} 10. Qc2 {[%clk 0:02:45]}  Qh5 {[%clk 0:02:50]} 11. e4 {[%clk 0:02:32]}  Nc6 {[%clk 0:02:50]} 12. exf5 {[%clk 0:02:29]}  e5 {[%clk 0:02:50]} 13. dxe5 {[%clk 0:02:23]}  Bxf5 {[%clk 0:02:51]} 14. Qc3 {[%clk 0:01:47]}  dxe5 {[%clk 0:02:45]} 15. Nxe5 {[%clk 0:01:48]}  Bb4 {[%clk 0:02:44]} 16. Qf3 {[%clk 0:01:06]}  Bxd2 {[%clk 0:02:33]} 17. Qxh5 {[%clk 0:01:05]}  Nxh5 {[%clk 0:02:33]} 18. Bd5+ {[%clk 0:01:04]}  Kh8 {[%clk 0:02:31]} 19. Nf7+ {[%clk 0:00:52]}  Rxf7 {[%clk 0:02:31]} 20. Bxf7 {[%clk 0:00:53]}  a3 {[%clk 0:02:31]} 21. Bxa3 {[%clk 0:00:46]}  Rxa3 {[%clk 0:02:28]} 22. Bxh5 {[%clk 0:00:46]}  Bc3 {[%clk 0:02:29]} 23. Rad1 {[%clk 0:00:37]}  g6 {[%clk 0:02:28]} 24. Bf3 {[%clk 0:00:34]}  Nd4 {[%clk 0:02:22]} 25. Bxb7 {[%clk 0:00:31]}  Rxa2 {[%clk 0:02:22]} 26. b4 {[%clk 0:00:20]}  Bc2 {[%clk 0:02:13]} 27. Kg2 {[%clk 0:00:16]}  Bxd1 {[%clk 0:02:13]} 28. Rxd1 {[%clk 0:00:17]}  Rb2 {[%clk 0:02:12]} 29. b5 {[%clk 0:00:17]}  Kg7 {[%clk 0:02:12]} 30. h4 {[%clk 0:00:16]}  Kf6 {[%clk 0:02:12]} 31. Rd3 {[%clk 0:00:16]}  Rc2 {[%clk 0:02:02]} 32. Be4 {[%clk 0:00:14]}  Rc1 {[%clk 0:02:00]} 33. Re3 {[%clk 0:00:11]}  Ba1 {[%clk 0:01:55]} 34. Bd5 {[%clk 0:00:11]}  Rc3 {[%clk 0:01:51]} 35. Re8 {[%clk 0:00:09]}  h5 {[%clk 0:01:48]} 36. Rc8 {[%clk 0:00:08]}  Rc2 {[%clk 0:01:44]} 37. Rxc7 {[%clk 0:00:08]}  Nf5 {[%clk 0:01:41]} 38. Rc6+ {[%clk 0:00:06]}  Ke5 {[%clk 0:01:41]} 39. Rxg6 {[%clk 0:00:05]}  Ne3+ {[%clk 0:01:41]} 40. Kf3 {[%clk 0:00:03]}  Nd1 {[%clk 0:01:38]} 41. Re6+ {[%clk 0:00:02]}  Kd4 {[%clk 0:01:37]} 42. Re4+ {[%clk 0:00:02]}  Kc5 {[%clk 0:01:37]} 43. Re2 {[%clk 0:00:02]}  Rc1 {[%clk 0:01:30]} 44. Kf4 {[%clk 0:00:02]}  Nc3 {[%clk 0:01:30]} 45. Re8 {[%clk 0:00:01]}  Nxd5+ {[%clk 0:01:30]} 46. cxd5 {[%clk 0:00:02]}  Kxd5 {[%clk 0:01:29]} 47. Kg5 {[%clk 0:00:03]}  Rf1 {[%clk 0:01:27]} 48. Re2 {[%clk 0:00:02]}  Bd4 {[%clk 0:01:27]} 49. f4 {[%clk 0:00:02]}  Rg1 {[%clk 0:01:26]} 50. Kxh5 {[%clk 0:00:02]}  Rxg3 {[%clk 0:01:26]} 51. f5 {[%clk 0:00:03]}  Rf3 {[%clk 0:01:26]} 52. Kg6 {[%clk 0:00:03]}  Rg3+ {[%clk 0:01:24]} 53. Kh5 {[%clk 0:00:03]}  Be5 {[%clk 0:01:23]} 54. b6 {[%clk 0:00:03]}  Rb3 {[%clk 0:01:23]} 55. Kg5 {[%clk 0:00:02]}  Rxb6 {[%clk 0:01:23]} 56. Rd2+ {[%clk 0:00:03]}  Bd4 {[%clk 0:01:21]} 57. h5 {[%clk 0:00:03]}  Ke4 {[%clk 0:01:22]} 58. Re2+ {[%clk 0:00:01]}  Be3+ {[%clk 0:01:21]} 59. Kg4 {[%clk 0:00:02]}  Kd3 {[%clk 0:01:19]} 60. Ra2 {[%clk 0:00:01]}  Rb4+ {[%clk 0:01:19]} 61. Kg3 {[%clk 0:00:02]}  Bf4+ {[%clk 0:01:13]} 62. Kf3 {[%clk 0:00:02]}  Bd2 {[%clk 0:01:10]} 63. Ra3+ {[%clk 0:00:01]}  Kc2 {[%clk 0:01:10]} 64. Ra5 {[%clk 0:00:00]}  Rh4 {[%clk 0:01:10]} 0-1


[Site "https://www.chess.com"]

[Event "Titled Tuesday Blitz August 15 Early 2023"]
[White "Haug, Havard"]
[Black "MrAnnihilation"]
[WhiteFideId "1547887"]
[WhiteElo "2668"]
[BlackElo "2455"]
[Result "1/2-1/2"]
[Round "3"]
[TimeControl "180+1"]
[Date "2023.08.15"]
[WhiteClock "0:00:20"]
[BlackClock "0:00:03"]
[Board "103"]

1. e4 {[%clk 0:03:00]}  e5 {[%clk 0:02:59]} 2. Nf3 {[%clk 0:02:57]}  Nc6 {[%clk 0:02:59]} 3. Bc4 {[%clk 0:02:57]}  Nf6 {[%clk 0:02:52]} 4. d3 {[%clk 0:02:56]}  h6 {[%clk 0:02:51]} 5. O-O {[%clk 0:02:53]}  d6 {[%clk 0:02:39]} 6. a4 {[%clk 0:02:46]}  g5 {[%clk 0:02:37]} 7. Re1 {[%clk 0:02:41]}  Bg7 {[%clk 0:02:36]} 8. Nc3 {[%clk 0:02:34]}  Bg4 {[%clk 0:02:13]} 9. Be3 {[%clk 0:02:30]}  Qd7 {[%clk 0:01:48]} 10. a5 {[%clk 0:02:27]}  a6 {[%clk 0:01:35]} 11. h3 {[%clk 0:02:20]}  Bh5 {[%clk 0:01:22]} 12. Nd5 {[%clk 0:02:20]}  Ne7 {[%clk 0:00:50]} 13. Nxf6+ {[%clk 0:02:13]}  Bxf6 {[%clk 0:00:50]} 14. g4 {[%clk 0:02:13]}  Bg6 {[%clk 0:00:45]} 15. d4 {[%clk 0:02:10]}  Bxe4 {[%clk 0:00:36]} 16. dxe5 {[%clk 0:02:10]}  Bxf3 {[%clk 0:00:19]} 17. Qxf3 {[%clk 0:02:09]}  Bxe5 {[%clk 0:00:19]} 18. Bxf7+ {[%clk 0:02:03]}  Kd8 {[%clk 0:00:18]} 19. Qxb7 {[%clk 0:02:02]}  Qc6 {[%clk 0:00:16]} 20. Qb3 {[%clk 0:01:41]}  Rf8 {[%clk 0:00:15]} 21. c3 {[%clk 0:01:39]}  Qf3 {[%clk 0:00:12]} 22. Bh5 {[%clk 0:00:33]}  Qxh3 {[%clk 0:00:12]} 23. Qc2 {[%clk 0:00:33]}  Bh2+ {[%clk 0:00:11]} 24. Kh1 {[%clk 0:00:34]}  Bg3+ {[%clk 0:00:06]} 25. Kg1 {[%clk 0:00:34]}  Bh2+ {[%clk 0:00:06]} 26. Kh1 {[%clk 0:00:34]}  Nd5 {[%clk 0:00:07]} 27. Bd4 {[%clk 0:00:22]}  Nf4 {[%clk 0:00:03]} 28. Qe4 {[%clk 0:00:21]}  Bg3+ {[%clk 0:00:03]} 29. Kg1 {[%clk 0:00:21]}  Bh2+ {[%clk 0:00:03]} 30. Kh1 {[%clk 0:00:21]}  Bg3+ {[%clk 0:00:02]} 31. Kg1 {[%clk 0:00:21]}  Qh2+ {[%clk 0:00:02]} 32. Kf1 {[%clk 0:00:20]}  Qh3+ {[%clk 0:00:03]} 33. Kg1 {[%clk 0:00:20]} 1/2-1/2


[Site "https://www.chess.com"]

[Event "Titled Tuesday Blitz August 15 Early 2023"]
[White "Sipila, Vilka"]
[Black "Rosenberg, Evan S"]
[WhiteFideId "505455"]
[BlackFideId "2019299"]
[WhiteElo "2626"]
[BlackElo "2450"]
[Result "1-0"]
[Round "3"]
[TimeControl "180+1"]
[Date "2023.08.15"]
[WhiteClock "0:02:02"]
[BlackClock "0:00:15"]
[Board "106"]

1. d4 {[%clk 0:02:57]}  d5 {[%clk 0:02:59]} 2. Bf4 {[%clk 0:02:57]}  c5 {[%clk 0:02:59]} 3. e3 {[%clk 0:02:56]}  Nc6 {[%clk 0:02:59]} 4. Nf3 {[%clk 0:02:56]}  Bg4 {[%clk 0:02:57]} 5. c3 {[%clk 0:02:50]}  e6 {[%clk 0:02:57]} 6. Nbd2 {[%clk 0:02:48]}  Nf6 {[%clk 0:02:56]} 7. h3 {[%clk 0:02:47]}  Bh5 {[%clk 0:02:52]} 8. g4 {[%clk 0:02:46]}  Bg6 {[%clk 0:02:52]} 9. Ne5 {[%clk 0:02:47]}  Be7 {[%clk 0:02:25]} 10. h4 {[%clk 0:02:45]}  h5 {[%clk 0:02:16]} 11. g5 {[%clk 0:02:43]}  Nd7 {[%clk 0:02:11]} 12. Nxg6 {[%clk 0:02:42]}  fxg6 {[%clk 0:02:12]} 13. Bd3 {[%clk 0:02:42]}  Kf7 {[%clk 0:02:01]} 14. Qf3 {[%clk 0:02:37]}  Kg8 {[%clk 0:01:43]} 15. Bxg6 {[%clk 0:02:37]}  Nf8 {[%clk 0:01:43]} 16. Bc7 {[%clk 0:02:32]}  Nxg6 {[%clk 0:01:38]} 17. Bxd8 {[%clk 0:02:32]}  Rxd8 {[%clk 0:01:39]} 18. O-O-O {[%clk 0:02:29]}  Rf8 {[%clk 0:01:27]} 19. Qh3 {[%clk 0:02:28]}  Nd8 {[%clk 0:01:19]} 20. f4 {[%clk 0:02:26]}  Rf5 {[%clk 0:01:13]} 21. Nf3 {[%clk 0:02:25]}  Kh7 {[%clk 0:01:04]} 22. Qf1 {[%clk 0:02:16]}  Rhf8 {[%clk 0:00:59]} 23. Qe2 {[%clk 0:02:16]}  Nh8 {[%clk 0:00:51]} 24. Ne5 {[%clk 0:02:12]}  g6 {[%clk 0:00:50]} 25. dxc5 {[%clk 0:02:07]}  Bxc5 {[%clk 0:00:47]} 26. Nd7 {[%clk 0:02:07]}  b6 {[%clk 0:00:30]} 27. Nxf8+ {[%clk 0:02:06]}  Rxf8 {[%clk 0:00:30]} 28. e4 {[%clk 0:02:06]}  Rxf4 {[%clk 0:00:21]} 29. exd5 {[%clk 0:02:05]}  Rf2 {[%clk 0:00:17]} 30. Qe1 {[%clk 0:02:02]}  exd5 {[%clk 0:00:15]} 1-0


[Site "https://www.chess.com"]